{"text_format":"1","workbook":"xlsx","n_sheets":3,"sheets":["Спортсмены","Свод по событию","Лист1"],"not_rendered":{"charts":0,"images":0,"macros":1,"external_links":0,"defined_names":3,"comments":0,"pivot_tables":1},"unopened":[],"bounds":{"document_bytes":16777216,"sheet_cells":100000,"rows_first":2000,"rows_last":500,"rows_between":2000,"halvings":0,"cell_chars":16384,"cell_head_chars":4096},"cells_cut":0,"cells_raw":0,"read":"whole","date_system":"1900"}

{"sheet":"Спортсмены","index":0,"n_rows":107,"n_cols":18,"rows_kept":107,"cut":false,"hidden":false,"merged":[[11,16,11,17],[12,16,12,17],[13,16,13,17],[13,10,13,11],[12,12,12,13],[13,12,13,13],[11,14,11,15],[12,14,12,15],[13,14,13,15],[11,10,11,11],[12,10,12,11],[11,12,11,13]]}
["возраст","КатВес","ФИО","ПОЛ","ГОД","ВЕС","СОБЫТИЕ",null,"Текущий год",2017]
[{"$f":"LOOKUP(YEAR(TODAY())-Таблица1[[#This Row],[ГОД]],{0,11,15,18},$K$3:$K$6)","v":2},{"$f":"IFERROR(MATCH(Таблица1[[#This Row],[ВЕС]],INDEX($K$16:$R$24,,MATCH(Таблица1[[#This Row],[ПОЛ]]&Таблица1[[#This Row],[возраст]],$K$15:$R$15&$K$25:$R$25,0))),0)","v":0},"Аверин Дмитрий Андреевич","м",2004,36.700000000000003,"Приезд Арнольда",null,null,null,"Группа","Возраст"]
[{"$f":"LOOKUP(YEAR(TODAY())-Таблица1[[#This Row],[ГОД]],{0,11,15,18},$K$3:$K$6)","v":1},{"$f":"IFERROR(MATCH(Таблица1[[#This Row],[ВЕС]],INDEX($K$16:$R$24,,MATCH(Таблица1[[#This Row],[ПОЛ]]&Таблица1[[#This Row],[возраст]],$K$15:$R$15&$K$25:$R$25,0))),0)","v":3},"Алексеенко Егор Васильевич","м",2007,30,null,null,null,null,1,10,"до 10 лет (2007-2017)"]
[{"$f":"LOOKUP(YEAR(TODAY())-Таблица1[[#This Row],[ГОД]],{0,11,15,18},$K$3:$K$6)","v":2},{"$f":"IFERROR(MATCH(Таблица1[[#This Row],[ВЕС]],INDEX($K$16:$R$24,,MATCH(Таблица1[[#This Row],[ПОЛ]]&Таблица1[[#This Row],[возраст]],$K$15:$R$15&$K$25:$R$25,0))),0)","v":0},"Алиев Нуру Абулфат оглы","м",2005,36.9,"Турнир МСК района",null,null,null,2,14,"от 11 до 14 (2002-2006)"]
[{"$f":"LOOKUP(YEAR(TODAY())-Таблица1[[#This Row],[ГОД]],{0,11,15,18},$K$3:$K$6)","v":1},{"$f":"IFERROR(MATCH(Таблица1[[#This Row],[ВЕС]],INDEX($K$16:$R$24,,MATCH(Таблица1[[#This Row],[ПОЛ]]&Таблица1[[#This Row],[возраст]],$K$15:$R$15&$K$25:$R$25,0))),0)","v":1},"Аляутдинов Марат Борисович","м",2009,24.4,"Приезд Арнольда",null,null,null,3,17,"от 15 до 17 (1998-2002)"]
[{"$f":"LOOKUP(YEAR(TODAY())-Таблица1[[#This Row],[ГОД]],{0,11,15,18},$K$3:$K$6)","v":1},{"$f":"IFERROR(MATCH(Таблица1[[#This Row],[ВЕС]],INDEX($K$16:$R$24,,MATCH(Таблица1[[#This Row],[ПОЛ]]&Таблица1[[#This Row],[возраст]],$K$15:$R$15&$K$25:$R$25,0))),0)","v":5},"Афанасенко Севастьян Евгеньевич","м",2007,38.4,"Приезд Арнольда",null,null,null,4,100,"от 18 лет (1999+)"]
[{"$f":"LOOKUP(YEAR(TODAY())-Таблица1[[#This Row],[ГОД]],{0,11,15,18},$K$3:$K$6)","v":1},{"$f":"IFERROR(MATCH(Таблица1[[#This Row],[ВЕС]],INDEX($K$16:$R$24,,MATCH(Таблица1[[#This Row],[ПОЛ]]&Таблица1[[#This Row],[возраст]],$K$15:$R$15&$K$25:$R$25,0))),0)","v":5},"Балихина Арина Богдановна","ж",2007,38.200000000000003,"Приезд Арнольда"]
[{"$f":"LOOKUP(YEAR(TODAY())-Таблица1[[#This Row],[ГОД]],{0,11,15,18},$K$3:$K$6)","v":1},{"$f":"IFERROR(MATCH(Таблица1[[#This Row],[ВЕС]],INDEX($K$16:$R$24,,MATCH(Таблица1[[#This Row],[ПОЛ]]&Таблица1[[#This Row],[возраст]],$K$15:$R$15&$K$25:$R$25,0))),0)","v":5},"Барсуков Артем Вадимович","м",2007,38,"Приезд Арнольда"]
[{"$f":"LOOKUP(YEAR(TODAY())-Таблица1[[#This Row],[ГОД]],{0,11,15,18},$K$3:$K$6)","v":1},{"$f":"IFERROR(MATCH(Таблица1[[#This Row],[ВЕС]],INDEX($K$16:$R$24,,MATCH(Таблица1[[#This Row],[ПОЛ]]&Таблица1[[#This Row],[возраст]],$K$15:$R$15&$K$25:$R$25,0))),0)","v":3},"Беляков Даниил Евгеньевич","м",2007,32.700000000000003,"Турнир МСК района"]
[{"$f":"LOOKUP(YEAR(TODAY())-Таблица1[[#This Row],[ГОД]],{0,11,15,18},$K$3:$K$6)","v":1},{"$f":"IFERROR(MATCH(Таблица1[[#This Row],[ВЕС]],INDEX($K$16:$R$24,,MATCH(Таблица1[[#This Row],[ПОЛ]]&Таблица1[[#This Row],[возраст]],$K$15:$R$15&$K$25:$R$25,0))),0)","v":3},"Берегов Иван Михайлович","м",2009,31.1]
[{"$f":"LOOKUP(YEAR(TODAY())-Таблица1[[#This Row],[ГОД]],{0,11,15,18},$K$3:$K$6)","v":2},{"$f":"IFERROR(MATCH(Таблица1[[#This Row],[ВЕС]],INDEX($K$16:$R$24,,MATCH(Таблица1[[#This Row],[ПОЛ]]&Таблица1[[#This Row],[возраст]],$K$15:$R$15&$K$25:$R$25,0))),0)","v":0},"Богомаз Федор Денисович","м",2006,32.200000000000003,"Приезд Арнольда"]
[{"$f":"LOOKUP(YEAR(TODAY())-Таблица1[[#This Row],[ГОД]],{0,11,15,18},$K$3:$K$6)","v":2},{"$f":"IFERROR(MATCH(Таблица1[[#This Row],[ВЕС]],INDEX($K$16:$R$24,,MATCH(Таблица1[[#This Row],[ПОЛ]]&Таблица1[[#This Row],[возраст]],$K$15:$R$15&$K$25:$R$25,0))),0)","v":2},"Богоявленкский Александр Станиславович","м",2003,45.4,null,null,null,null,"Мальчики/девочки",null,"Юноши/девушки ",null,"Юниоры/юниорки",null,"Мужчины/женщины"]
[{"$f":"LOOKUP(YEAR(TODAY())-Таблица1[[#This Row],[ГОД]],{0,11,15,18},$K$3:$K$6)","v":2},{"$f":"IFERROR(MATCH(Таблица1[[#This Row],[ВЕС]],INDEX($K$16:$R$24,,MATCH(Таблица1[[#This Row],[ПОЛ]]&Таблица1[[#This Row],[возраст]],$K$15:$R$15&$K$25:$R$25,0))),0)","v":1},"Болячевский Александр Михайлович","м",2006,40.200000000000003,"Приезд Арнольда",null,null,null,"до 10 лет",null," до 14 лет",null,"до 17 лет",null,"с 17 и старше"]
[{"$f":"LOOKUP(YEAR(TODAY())-Таблица1[[#This Row],[ГОД]],{0,11,15,18},$K$3:$K$6)","v":2},{"$f":"IFERROR(MATCH(Таблица1[[#This Row],[ВЕС]],INDEX($K$16:$R$24,,MATCH(Таблица1[[#This Row],[ПОЛ]]&Таблица1[[#This Row],[возраст]],$K$15:$R$15&$K$25:$R$25,0))),0)","v":3},"Борисов Георгий Кириллович","м",2005,49.3,null,null,null,"вес","вес",null,"вес",null,"вес",null,"вес"]
[{"$f":"LOOKUP(YEAR(TODAY())-Таблица1[[#This Row],[ГОД]],{0,11,15,18},$K$3:$K$6)","v":1},{"$f":"IFERROR(MATCH(Таблица1[[#This Row],[ВЕС]],INDEX($K$16:$R$24,,MATCH(Таблица1[[#This Row],[ПОЛ]]&Таблица1[[#This Row],[возраст]],$K$15:$R$15&$K$25:$R$25,0))),0)","v":3},"Вилков Арсений Михайлович","м",2007,30,null,null,null,null,"М","Ж","М","Ж","М","Ж","М","Ж"]
[{"$f":"LOOKUP(YEAR(TODAY())-Таблица1[[#This Row],[ГОД]],{0,11,15,18},$K$3:$K$6)","v":2},{"$f":"IFERROR(MATCH(Таблица1[[#This Row],[ВЕС]],INDEX($K$16:$R$24,,MATCH(Таблица1[[#This Row],[ПОЛ]]&Таблица1[[#This Row],[возраст]],$K$15:$R$15&$K$25:$R$25,0))),0)","v":3},"Влах Егор Семенович","м",2004,49.1,"Турнир МСК района",null,null,1,22,20,38,32,46,40,60,48]
[{"$f":"LOOKUP(YEAR(TODAY())-Таблица1[[#This Row],[ГОД]],{0,11,15,18},$K$3:$K$6)","v":1},{"$f":"IFERROR(MATCH(Таблица1[[#This Row],[ВЕС]],INDEX($K$16:$R$24,,MATCH(Таблица1[[#This Row],[ПОЛ]]&Таблица1[[#This Row],[возраст]],$K$15:$R$15&$K$25:$R$25,0))),0)","v":0},"Гончаров Дмитрий Андреевич","м",2010,21.6,"Турнир МСК района",null,null,2,26,24,42,36,50,44,66,52]
[{"$f":"LOOKUP(YEAR(TODAY())-Таблица1[[#This Row],[ГОД]],{0,11,15,18},$K$3:$K$6)","v":2},{"$f":"IFERROR(MATCH(Таблица1[[#This Row],[ВЕС]],INDEX($K$16:$R$24,,MATCH(Таблица1[[#This Row],[ПОЛ]]&Таблица1[[#This Row],[возраст]],$K$15:$R$15&$K$25:$R$25,0))),0)","v":1},"Горбунов Вячеслав Валерьевич","м",2006,40,"Приезд Арнольда",null,null,3,30,28,46,40,55,48,73,57]
[{"$f":"LOOKUP(YEAR(TODAY())-Таблица1[[#This Row],[ГОД]],{0,11,15,18},$K$3:$K$6)","v":1},{"$f":"IFERROR(MATCH(Таблица1[[#This Row],[ВЕС]],INDEX($K$16:$R$24,,MATCH(Таблица1[[#This Row],[ПОЛ]]&Таблица1[[#This Row],[возраст]],$K$15:$R$15&$K$25:$R$25,0))),0)","v":4},"Горин Илья Кириллович","м",2007,36.200000000000003,null,null,null,4,34,32,50,44,60,52,81,63]
[{"$f":"LOOKUP(YEAR(TODAY())-Таблица1[[#This Row],[ГОД]],{0,11,15,18},$K$3:$K$6)","v":1},{"$f":"IFERROR(MATCH(Таблица1[[#This Row],[ВЕС]],INDEX($K$16:$R$24,,MATCH(Таблица1[[#This Row],[ПОЛ]]&Таблица1[[#This Row],[возраст]],$K$15:$R$15&$K$25:$R$25,0))),0)","v":1},"Готовцев Владимир Владимирович","м",2009,24.8,"Приезд Арнольда",null,null,5,38,36,55,48,66,57,90,70]
[{"$f":"LOOKUP(YEAR(TODAY())-Таблица1[[#This Row],[ГОД]],{0,11,15,18},$K$3:$K$6)","v":1},{"$f":"IFERROR(MATCH(Таблица1[[#This Row],[ВЕС]],INDEX($K$16:$R$24,,MATCH(Таблица1[[#This Row],[ПОЛ]]&Таблица1[[#This Row],[возраст]],$K$15:$R$15&$K$25:$R$25,0))),0)","v":3},"Грибов Владимир Владимирович","м",2007,31,"Турнир МСК района",null,null,6,42,40,60,52,73,63,100,78]
[{"$f":"LOOKUP(YEAR(TODAY())-Таблица1[[#This Row],[ГОД]],{0,11,15,18},$K$3:$K$6)","v":1},{"$f":"IFERROR(MATCH(Таблица1[[#This Row],[ВЕС]],INDEX($K$16:$R$24,,MATCH(Таблица1[[#This Row],[ПОЛ]]&Таблица1[[#This Row],[возраст]],$K$15:$R$15&$K$25:$R$25,0))),0)","v":1},"Григорьев Георгий Александрович","м",2010,24,"Турнир МСК района",null,null,7,46,44,66,57,81,70,200,200]
[{"$f":"LOOKUP(YEAR(TODAY())-Таблица1[[#This Row],[ГОД]],{0,11,15,18},$K$3:$K$6)","v":1},{"$f":"IFERROR(MATCH(Таблица1[[#This Row],[ВЕС]],INDEX($K$16:$R$24,,MATCH(Таблица1[[#This Row],[ПОЛ]]&Таблица1[[#This Row],[возраст]],$K$15:$R$15&$K$25:$R$25,0))),0)","v":1},"Гунбин Роман Денисович","м",2009,24.9,null,null,null,8,100,100,100,100,90,200]
[{"$f":"LOOKUP(YEAR(TODAY())-Таблица1[[#This Row],[ГОД]],{0,11,15,18},$K$3:$K$6)","v":1},{"$f":"IFERROR(MATCH(Таблица1[[#This Row],[ВЕС]],INDEX($K$16:$R$24,,MATCH(Таблица1[[#This Row],[ПОЛ]]&Таблица1[[#This Row],[возраст]],$K$15:$R$15&$K$25:$R$25,0))),0)","v":3},"Гусев Глеб Александрович","м",2007,32,"Приезд Арнольда",null,null,9,null,null,null,null,200]
[{"$f":"LOOKUP(YEAR(TODAY())-Таблица1[[#This Row],[ГОД]],{0,11,15,18},$K$3:$K$6)","v":1},{"$f":"IFERROR(MATCH(Таблица1[[#This Row],[ВЕС]],INDEX($K$16:$R$24,,MATCH(Таблица1[[#This Row],[ПОЛ]]&Таблица1[[#This Row],[возраст]],$K$15:$R$15&$K$25:$R$25,0))),0)","v":1},"Гусев Кирилл Александрович","м",2009,25,null,null,null,"возраст",1,1,2,2,3,3,4,4]
[{"$f":"LOOKUP(YEAR(TODAY())-Таблица1[[#This Row],[ГОД]],{0,11,15,18},$K$3:$K$6)","v":2},{"$f":"IFERROR(MATCH(Таблица1[[#This Row],[ВЕС]],INDEX($K$16:$R$24,,MATCH(Таблица1[[#This Row],[ПОЛ]]&Таблица1[[#This Row],[возраст]],$K$15:$R$15&$K$25:$R$25,0))),0)","v":0},"Гусейнов Акиф Эдьшад оглы","м",2005,37,"Турнир МСК района"]
[{"$f":"LOOKUP(YEAR(TODAY())-Таблица1[[#This Row],[ГОД]],{0,11,15,18},$K$3:$K$6)","v":1},{"$f":"IFERROR(MATCH(Таблица1[[#This Row],[ВЕС]],INDEX($K$16:$R$24,,MATCH(Таблица1[[#This Row],[ПОЛ]]&Таблица1[[#This Row],[возраст]],$K$15:$R$15&$K$25:$R$25,0))),0)","v":2},"Данков Илья Александрович","м",2008,26.1,"Турнир МСК района"]
[{"$f":"LOOKUP(YEAR(TODAY())-Таблица1[[#This Row],[ГОД]],{0,11,15,18},$K$3:$K$6)","v":3},{"$f":"IFERROR(MATCH(Таблица1[[#This Row],[ВЕС]],INDEX($K$16:$R$24,,MATCH(Таблица1[[#This Row],[ПОЛ]]&Таблица1[[#This Row],[возраст]],$K$15:$R$15&$K$25:$R$25,0))),0)","v":3},"Дорогов Михаил Константинович","м",2002,55]
[{"$f":"LOOKUP(YEAR(TODAY())-Таблица1[[#This Row],[ГОД]],{0,11,15,18},$K$3:$K$6)","v":2},{"$f":"IFERROR(MATCH(Таблица1[[#This Row],[ВЕС]],INDEX($K$16:$R$24,,MATCH(Таблица1[[#This Row],[ПОЛ]]&Таблица1[[#This Row],[возраст]],$K$15:$R$15&$K$25:$R$25,0))),0)","v":3},"Заболотный Даниил Сергеевич","м",2003,46,"Турнир МСК района"]
[{"$f":"LOOKUP(YEAR(TODAY())-Таблица1[[#This Row],[ГОД]],{0,11,15,18},$K$3:$K$6)","v":1},{"$f":"IFERROR(MATCH(Таблица1[[#This Row],[ВЕС]],INDEX($K$16:$R$24,,MATCH(Таблица1[[#This Row],[ПОЛ]]&Таблица1[[#This Row],[возраст]],$K$15:$R$15&$K$25:$R$25,0))),0)","v":3},"Захаров Платон Андреевич","м",2007,33]
[{"$f":"LOOKUP(YEAR(TODAY())-Таблица1[[#This Row],[ГОД]],{0,11,15,18},$K$3:$K$6)","v":2},{"$f":"IFERROR(MATCH(Таблица1[[#This Row],[ВЕС]],INDEX($K$16:$R$24,,MATCH(Таблица1[[#This Row],[ПОЛ]]&Таблица1[[#This Row],[возраст]],$K$15:$R$15&$K$25:$R$25,0))),0)","v":2},"Иванов Владимир Константинович","м",2005,42,"Турнир МСК района"]
[{"$f":"LOOKUP(YEAR(TODAY())-Таблица1[[#This Row],[ГОД]],{0,11,15,18},$K$3:$K$6)","v":1},{"$f":"IFERROR(MATCH(Таблица1[[#This Row],[ВЕС]],INDEX($K$16:$R$24,,MATCH(Таблица1[[#This Row],[ПОЛ]]&Таблица1[[#This Row],[возраст]],$K$15:$R$15&$K$25:$R$25,0))),0)","v":1},"Иванов Лев Сергеевич","м",2010,22,"Турнир МСК района"]
[{"$f":"LOOKUP(YEAR(TODAY())-Таблица1[[#This Row],[ГОД]],{0,11,15,18},$K$3:$K$6)","v":1},{"$f":"IFERROR(MATCH(Таблица1[[#This Row],[ВЕС]],INDEX($K$16:$R$24,,MATCH(Таблица1[[#This Row],[ПОЛ]]&Таблица1[[#This Row],[возраст]],$K$15:$R$15&$K$25:$R$25,0))),0)","v":2},"Калашник Андрей","м",2009,26,"Турнир МСК района"]
[{"$f":"LOOKUP(YEAR(TODAY())-Таблица1[[#This Row],[ГОД]],{0,11,15,18},$K$3:$K$6)","v":1},{"$f":"IFERROR(MATCH(Таблица1[[#This Row],[ВЕС]],INDEX($K$16:$R$24,,MATCH(Таблица1[[#This Row],[ПОЛ]]&Таблица1[[#This Row],[возраст]],$K$15:$R$15&$K$25:$R$25,0))),0)","v":1},"Камакин Роман Максимович","м",2010,22.8,"Турнир МСК района"]
[{"$f":"LOOKUP(YEAR(TODAY())-Таблица1[[#This Row],[ГОД]],{0,11,15,18},$K$3:$K$6)","v":1},{"$f":"IFERROR(MATCH(Таблица1[[#This Row],[ВЕС]],INDEX($K$16:$R$24,,MATCH(Таблица1[[#This Row],[ПОЛ]]&Таблица1[[#This Row],[возраст]],$K$15:$R$15&$K$25:$R$25,0))),0)","v":4},"Каюсов Елисей Артемович","м",2008,34]
[{"$f":"LOOKUP(YEAR(TODAY())-Таблица1[[#This Row],[ГОД]],{0,11,15,18},$K$3:$K$6)","v":1},{"$f":"IFERROR(MATCH(Таблица1[[#This Row],[ВЕС]],INDEX($K$16:$R$24,,MATCH(Таблица1[[#This Row],[ПОЛ]]&Таблица1[[#This Row],[возраст]],$K$15:$R$15&$K$25:$R$25,0))),0)","v":4},"Клокотов Максим Сергеевич","м",2007,34]
[{"$f":"LOOKUP(YEAR(TODAY())-Таблица1[[#This Row],[ГОД]],{0,11,15,18},$K$3:$K$6)","v":2},{"$f":"IFERROR(MATCH(Таблица1[[#This Row],[ВЕС]],INDEX($K$16:$R$24,,MATCH(Таблица1[[#This Row],[ПОЛ]]&Таблица1[[#This Row],[возраст]],$K$15:$R$15&$K$25:$R$25,0))),0)","v":2},"Колесников Борис Дмитриевич","м",2005,43,"Приезд Арнольда"]
[{"$f":"LOOKUP(YEAR(TODAY())-Таблица1[[#This Row],[ГОД]],{0,11,15,18},$K$3:$K$6)","v":1},{"$f":"IFERROR(MATCH(Таблица1[[#This Row],[ВЕС]],INDEX($K$16:$R$24,,MATCH(Таблица1[[#This Row],[ПОЛ]]&Таблица1[[#This Row],[возраст]],$K$15:$R$15&$K$25:$R$25,0))),0)","v":1},"Колчин Лев Георгиевич","м",2009,25.4,"Приезд Арнольда"]
[{"$f":"LOOKUP(YEAR(TODAY())-Таблица1[[#This Row],[ГОД]],{0,11,15,18},$K$3:$K$6)","v":1},{"$f":"IFERROR(MATCH(Таблица1[[#This Row],[ВЕС]],INDEX($K$16:$R$24,,MATCH(Таблица1[[#This Row],[ПОЛ]]&Таблица1[[#This Row],[возраст]],$K$15:$R$15&$K$25:$R$25,0))),0)","v":2},"Комиссаров Денис Антонович","м",2009,26.8,"Приезд Арнольда"]
[{"$f":"LOOKUP(YEAR(TODAY())-Таблица1[[#This Row],[ГОД]],{0,11,15,18},$K$3:$K$6)","v":2},{"$f":"IFERROR(MATCH(Таблица1[[#This Row],[ВЕС]],INDEX($K$16:$R$24,,MATCH(Таблица1[[#This Row],[ПОЛ]]&Таблица1[[#This Row],[возраст]],$K$15:$R$15&$K$25:$R$25,0))),0)","v":1},"Костанян Андроник Араевич","м",2006,39]
[{"$f":"LOOKUP(YEAR(TODAY())-Таблица1[[#This Row],[ГОД]],{0,11,15,18},$K$3:$K$6)","v":1},{"$f":"IFERROR(MATCH(Таблица1[[#This Row],[ВЕС]],INDEX($K$16:$R$24,,MATCH(Таблица1[[#This Row],[ПОЛ]]&Таблица1[[#This Row],[возраст]],$K$15:$R$15&$K$25:$R$25,0))),0)","v":5},"Костанян Гарик Араевич","м",2008,38,"Турнир МСК района"]
[{"$f":"LOOKUP(YEAR(TODAY())-Таблица1[[#This Row],[ГОД]],{0,11,15,18},$K$3:$K$6)","v":2},{"$f":"IFERROR(MATCH(Таблица1[[#This Row],[ВЕС]],INDEX($K$16:$R$24,,MATCH(Таблица1[[#This Row],[ПОЛ]]&Таблица1[[#This Row],[возраст]],$K$15:$R$15&$K$25:$R$25,0))),0)","v":2},"Кочегин Леонид Антонович","м",2005,44,"Турнир МСК района"]
[{"$f":"LOOKUP(YEAR(TODAY())-Таблица1[[#This Row],[ГОД]],{0,11,15,18},$K$3:$K$6)","v":2},{"$f":"IFERROR(MATCH(Таблица1[[#This Row],[ВЕС]],INDEX($K$16:$R$24,,MATCH(Таблица1[[#This Row],[ПОЛ]]&Таблица1[[#This Row],[возраст]],$K$15:$R$15&$K$25:$R$25,0))),0)","v":0},"Крюков Егор Алексеевич","м",2004,36,"Приезд Арнольда"]
[{"$f":"LOOKUP(YEAR(TODAY())-Таблица1[[#This Row],[ГОД]],{0,11,15,18},$K$3:$K$6)","v":1},{"$f":"IFERROR(MATCH(Таблица1[[#This Row],[ВЕС]],INDEX($K$16:$R$24,,MATCH(Таблица1[[#This Row],[ПОЛ]]&Таблица1[[#This Row],[возраст]],$K$15:$R$15&$K$25:$R$25,0))),0)","v":4},"Кузнецов Александр Владимирович","м",2007,35,"Приезд Арнольда"]
[{"$f":"LOOKUP(YEAR(TODAY())-Таблица1[[#This Row],[ГОД]],{0,11,15,18},$K$3:$K$6)","v":2},{"$f":"IFERROR(MATCH(Таблица1[[#This Row],[ВЕС]],INDEX($K$16:$R$24,,MATCH(Таблица1[[#This Row],[ПОЛ]]&Таблица1[[#This Row],[возраст]],$K$15:$R$15&$K$25:$R$25,0))),0)","v":0},"Кулагин Вячеслав Анатольевич","м",2004,37.200000000000003,"Приезд Арнольда"]
[{"$f":"LOOKUP(YEAR(TODAY())-Таблица1[[#This Row],[ГОД]],{0,11,15,18},$K$3:$K$6)","v":1},{"$f":"IFERROR(MATCH(Таблица1[[#This Row],[ВЕС]],INDEX($K$16:$R$24,,MATCH(Таблица1[[#This Row],[ПОЛ]]&Таблица1[[#This Row],[возраст]],$K$15:$R$15&$K$25:$R$25,0))),0)","v":1},"Куракин Владислав Евгеньевич","м",2008,25]
[{"$f":"LOOKUP(YEAR(TODAY())-Таблица1[[#This Row],[ГОД]],{0,11,15,18},$K$3:$K$6)","v":3},{"$f":"IFERROR(MATCH(Таблица1[[#This Row],[ВЕС]],INDEX($K$16:$R$24,,MATCH(Таблица1[[#This Row],[ПОЛ]]&Таблица1[[#This Row],[возраст]],$K$15:$R$15&$K$25:$R$25,0))),0)","v":2},"Кутузов Георгий Анатольевич","м",2001,52,"Турнир МСК района"]
[{"$f":"LOOKUP(YEAR(TODAY())-Таблица1[[#This Row],[ГОД]],{0,11,15,18},$K$3:$K$6)","v":2},{"$f":"IFERROR(MATCH(Таблица1[[#This Row],[ВЕС]],INDEX($K$16:$R$24,,MATCH(Таблица1[[#This Row],[ПОЛ]]&Таблица1[[#This Row],[возраст]],$K$15:$R$15&$K$25:$R$25,0))),0)","v":0},"Лапшин Юрий Александрович","м",2006,37]
[{"$f":"LOOKUP(YEAR(TODAY())-Таблица1[[#This Row],[ГОД]],{0,11,15,18},$K$3:$K$6)","v":2},{"$f":"IFERROR(MATCH(Таблица1[[#This Row],[ВЕС]],INDEX($K$16:$R$24,,MATCH(Таблица1[[#This Row],[ПОЛ]]&Таблица1[[#This Row],[возраст]],$K$15:$R$15&$K$25:$R$25,0))),0)","v":0},"Левада Максим Алексеевич","м",2006,36,"Приезд Арнольда"]
[{"$f":"LOOKUP(YEAR(TODAY())-Таблица1[[#This Row],[ГОД]],{0,11,15,18},$K$3:$K$6)","v":1},{"$f":"IFERROR(MATCH(Таблица1[[#This Row],[ВЕС]],INDEX($K$16:$R$24,,MATCH(Таблица1[[#This Row],[ПОЛ]]&Таблица1[[#This Row],[возраст]],$K$15:$R$15&$K$25:$R$25,0))),0)","v":4},"Левшинов Ведагор Андреевич","м",2007,36,"Приезд Арнольда"]
[{"$f":"LOOKUP(YEAR(TODAY())-Таблица1[[#This Row],[ГОД]],{0,11,15,18},$K$3:$K$6)","v":2},{"$f":"IFERROR(MATCH(Таблица1[[#This Row],[ВЕС]],INDEX($K$16:$R$24,,MATCH(Таблица1[[#This Row],[ПОЛ]]&Таблица1[[#This Row],[возраст]],$K$15:$R$15&$K$25:$R$25,0))),0)","v":0},"Литузов Ярослав Витальевич","м",2006,null,"Приезд Арнольда"]
[{"$f":"LOOKUP(YEAR(TODAY())-Таблица1[[#This Row],[ГОД]],{0,11,15,18},$K$3:$K$6)","v":2},{"$f":"IFERROR(MATCH(Таблица1[[#This Row],[ВЕС]],INDEX($K$16:$R$24,,MATCH(Таблица1[[#This Row],[ПОЛ]]&Таблица1[[#This Row],[возраст]],$K$15:$R$15&$K$25:$R$25,0))),0)","v":2},"Лоза Никита Сергеевич","м",2005,45]
[{"$f":"LOOKUP(YEAR(TODAY())-Таблица1[[#This Row],[ГОД]],{0,11,15,18},$K$3:$K$6)","v":2},{"$f":"IFERROR(MATCH(Таблица1[[#This Row],[ВЕС]],INDEX($K$16:$R$24,,MATCH(Таблица1[[#This Row],[ПОЛ]]&Таблица1[[#This Row],[возраст]],$K$15:$R$15&$K$25:$R$25,0))),0)","v":0},"Малинин Арсений Юрьевич","м",2006,36.6,"Турнир МСК района"]
[{"$f":"LOOKUP(YEAR(TODAY())-Таблица1[[#This Row],[ГОД]],{0,11,15,18},$K$3:$K$6)","v":1},{"$f":"IFERROR(MATCH(Таблица1[[#This Row],[ВЕС]],INDEX($K$16:$R$24,,MATCH(Таблица1[[#This Row],[ПОЛ]]&Таблица1[[#This Row],[возраст]],$K$15:$R$15&$K$25:$R$25,0))),0)","v":2},"Мамедов Рафаэль Юсифович","м",2009,28,"Приезд Арнольда"]
[{"$f":"LOOKUP(YEAR(TODAY())-Таблица1[[#This Row],[ГОД]],{0,11,15,18},$K$3:$K$6)","v":1},{"$f":"IFERROR(MATCH(Таблица1[[#This Row],[ВЕС]],INDEX($K$16:$R$24,,MATCH(Таблица1[[#This Row],[ПОЛ]]&Таблица1[[#This Row],[возраст]],$K$15:$R$15&$K$25:$R$25,0))),0)","v":1},"Мамедов Руфат Юсифович","м",2011,22]
[{"$f":"LOOKUP(YEAR(TODAY())-Таблица1[[#This Row],[ГОД]],{0,11,15,18},$K$3:$K$6)","v":1},{"$f":"IFERROR(MATCH(Таблица1[[#This Row],[ВЕС]],INDEX($K$16:$R$24,,MATCH(Таблица1[[#This Row],[ПОЛ]]&Таблица1[[#This Row],[возраст]],$K$15:$R$15&$K$25:$R$25,0))),0)","v":4},"Мамедов Эльгюн Эльденизович","м",2007,37,"Турнир МСК района"]
[{"$f":"LOOKUP(YEAR(TODAY())-Таблица1[[#This Row],[ГОД]],{0,11,15,18},$K$3:$K$6)","v":1},{"$f":"IFERROR(MATCH(Таблица1[[#This Row],[ВЕС]],INDEX($K$16:$R$24,,MATCH(Таблица1[[#This Row],[ПОЛ]]&Таблица1[[#This Row],[возраст]],$K$15:$R$15&$K$25:$R$25,0))),0)","v":2},"Мацавей Артем Денисович","м",2009,28,"Приезд Арнольда"]
[{"$f":"LOOKUP(YEAR(TODAY())-Таблица1[[#This Row],[ГОД]],{0,11,15,18},$K$3:$K$6)","v":1},{"$f":"IFERROR(MATCH(Таблица1[[#This Row],[ВЕС]],INDEX($K$16:$R$24,,MATCH(Таблица1[[#This Row],[ПОЛ]]&Таблица1[[#This Row],[возраст]],$K$15:$R$15&$K$25:$R$25,0))),0)","v":5},"Медведев Никита Алексеевич","м",2008,38.200000000000003,"Приезд Арнольда"]
[{"$f":"LOOKUP(YEAR(TODAY())-Таблица1[[#This Row],[ГОД]],{0,11,15,18},$K$3:$K$6)","v":2},{"$f":"IFERROR(MATCH(Таблица1[[#This Row],[ВЕС]],INDEX($K$16:$R$24,,MATCH(Таблица1[[#This Row],[ПОЛ]]&Таблица1[[#This Row],[возраст]],$K$15:$R$15&$K$25:$R$25,0))),0)","v":3},"Мешалкин Павел Васильевич","м",2005,46]
[{"$f":"LOOKUP(YEAR(TODAY())-Таблица1[[#This Row],[ГОД]],{0,11,15,18},$K$3:$K$6)","v":1},{"$f":"IFERROR(MATCH(Таблица1[[#This Row],[ВЕС]],INDEX($K$16:$R$24,,MATCH(Таблица1[[#This Row],[ПОЛ]]&Таблица1[[#This Row],[возраст]],$K$15:$R$15&$K$25:$R$25,0))),0)","v":5},"Мещеряков Андрей Михайлович","м",2007,38,"Турнир МСК района"]
[{"$f":"LOOKUP(YEAR(TODAY())-Таблица1[[#This Row],[ГОД]],{0,11,15,18},$K$3:$K$6)","v":1},{"$f":"IFERROR(MATCH(Таблица1[[#This Row],[ВЕС]],INDEX($K$16:$R$24,,MATCH(Таблица1[[#This Row],[ПОЛ]]&Таблица1[[#This Row],[возраст]],$K$15:$R$15&$K$25:$R$25,0))),0)","v":2},"Милаев Дмитрий Евгеньевич","м",2008,29,"Приезд Арнольда"]
[{"$f":"LOOKUP(YEAR(TODAY())-Таблица1[[#This Row],[ГОД]],{0,11,15,18},$K$3:$K$6)","v":1},{"$f":"IFERROR(MATCH(Таблица1[[#This Row],[ВЕС]],INDEX($K$16:$R$24,,MATCH(Таблица1[[#This Row],[ПОЛ]]&Таблица1[[#This Row],[возраст]],$K$15:$R$15&$K$25:$R$25,0))),0)","v":3},"Михайлов Андрей Дмитриевич","м",2009,30,"Приезд Арнольда"]
[{"$f":"LOOKUP(YEAR(TODAY())-Таблица1[[#This Row],[ГОД]],{0,11,15,18},$K$3:$K$6)","v":1},{"$f":"IFERROR(MATCH(Таблица1[[#This Row],[ВЕС]],INDEX($K$16:$R$24,,MATCH(Таблица1[[#This Row],[ПОЛ]]&Таблица1[[#This Row],[возраст]],$K$15:$R$15&$K$25:$R$25,0))),0)","v":5},"Михайлов Николай Денисович","м",2007,39]
[{"$f":"LOOKUP(YEAR(TODAY())-Таблица1[[#This Row],[ГОД]],{0,11,15,18},$K$3:$K$6)","v":2},{"$f":"IFERROR(MATCH(Таблица1[[#This Row],[ВЕС]],INDEX($K$16:$R$24,,MATCH(Таблица1[[#This Row],[ПОЛ]]&Таблица1[[#This Row],[возраст]],$K$15:$R$15&$K$25:$R$25,0))),0)","v":3},"Мозгалев Никита Алексеевич","м",2005,47,"Турнир МСК района"]
[{"$f":"LOOKUP(YEAR(TODAY())-Таблица1[[#This Row],[ГОД]],{0,11,15,18},$K$3:$K$6)","v":2},{"$f":"IFERROR(MATCH(Таблица1[[#This Row],[ВЕС]],INDEX($K$16:$R$24,,MATCH(Таблица1[[#This Row],[ПОЛ]]&Таблица1[[#This Row],[возраст]],$K$15:$R$15&$K$25:$R$25,0))),0)","v":0},"Немышев Ильдар Наилевич","м",2006,37.799999999999997,"Приезд Арнольда"]
[{"$f":"LOOKUP(YEAR(TODAY())-Таблица1[[#This Row],[ГОД]],{0,11,15,18},$K$3:$K$6)","v":2},{"$f":"IFERROR(MATCH(Таблица1[[#This Row],[ВЕС]],INDEX($K$16:$R$24,,MATCH(Таблица1[[#This Row],[ПОЛ]]&Таблица1[[#This Row],[возраст]],$K$15:$R$15&$K$25:$R$25,0))),0)","v":1},"Никандров Егор Александрович","м",2004,38]
[{"$f":"LOOKUP(YEAR(TODAY())-Таблица1[[#This Row],[ГОД]],{0,11,15,18},$K$3:$K$6)","v":1},{"$f":"IFERROR(MATCH(Таблица1[[#This Row],[ВЕС]],INDEX($K$16:$R$24,,MATCH(Таблица1[[#This Row],[ПОЛ]]&Таблица1[[#This Row],[возраст]],$K$15:$R$15&$K$25:$R$25,0))),0)","v":3},"Павлов Максим Сергеевич","м",2008,31.9,"Приезд Арнольда"]
[{"$f":"LOOKUP(YEAR(TODAY())-Таблица1[[#This Row],[ГОД]],{0,11,15,18},$K$3:$K$6)","v":2},{"$f":"IFERROR(MATCH(Таблица1[[#This Row],[ВЕС]],INDEX($K$16:$R$24,,MATCH(Таблица1[[#This Row],[ПОЛ]]&Таблица1[[#This Row],[возраст]],$K$15:$R$15&$K$25:$R$25,0))),0)","v":3},"Падерин Константин Юрьевич","м",2005,48]
[{"$f":"LOOKUP(YEAR(TODAY())-Таблица1[[#This Row],[ГОД]],{0,11,15,18},$K$3:$K$6)","v":1},{"$f":"IFERROR(MATCH(Таблица1[[#This Row],[ВЕС]],INDEX($K$16:$R$24,,MATCH(Таблица1[[#This Row],[ПОЛ]]&Таблица1[[#This Row],[возраст]],$K$15:$R$15&$K$25:$R$25,0))),0)","v":5},"Пастухов Максим Алексеевич","м",2007,39.6,"Турнир МСК района"]
[{"$f":"LOOKUP(YEAR(TODAY())-Таблица1[[#This Row],[ГОД]],{0,11,15,18},$K$3:$K$6)","v":2},{"$f":"IFERROR(MATCH(Таблица1[[#This Row],[ВЕС]],INDEX($K$16:$R$24,,MATCH(Таблица1[[#This Row],[ПОЛ]]&Таблица1[[#This Row],[возраст]],$K$15:$R$15&$K$25:$R$25,0))),0)","v":3},"Пёвхёнен Денис Алексеевич","м",2003,46.8]
[{"$f":"LOOKUP(YEAR(TODAY())-Таблица1[[#This Row],[ГОД]],{0,11,15,18},$K$3:$K$6)","v":2},{"$f":"IFERROR(MATCH(Таблица1[[#This Row],[ВЕС]],INDEX($K$16:$R$24,,MATCH(Таблица1[[#This Row],[ПОЛ]]&Таблица1[[#This Row],[возраст]],$K$15:$R$15&$K$25:$R$25,0))),0)","v":3},"Петров Никита Дмитриевич","м",2005,49,"Турнир МСК района"]
[{"$f":"LOOKUP(YEAR(TODAY())-Таблица1[[#This Row],[ГОД]],{0,11,15,18},$K$3:$K$6)","v":2},{"$f":"IFERROR(MATCH(Таблица1[[#This Row],[ВЕС]],INDEX($K$16:$R$24,,MATCH(Таблица1[[#This Row],[ПОЛ]]&Таблица1[[#This Row],[возраст]],$K$15:$R$15&$K$25:$R$25,0))),0)","v":0},"Петрушин Егор Андреевич","м",2004,37.9]
[{"$f":"LOOKUP(YEAR(TODAY())-Таблица1[[#This Row],[ГОД]],{0,11,15,18},$K$3:$K$6)","v":4},{"$f":"IFERROR(MATCH(Таблица1[[#This Row],[ВЕС]],INDEX($K$16:$R$24,,MATCH(Таблица1[[#This Row],[ПОЛ]]&Таблица1[[#This Row],[возраст]],$K$15:$R$15&$K$25:$R$25,0))),0)","v":2},"Пешков Андрей Викторович","м",1978,72.2,"Приезд Арнольда"]
[{"$f":"LOOKUP(YEAR(TODAY())-Таблица1[[#This Row],[ГОД]],{0,11,15,18},$K$3:$K$6)","v":2},{"$f":"IFERROR(MATCH(Таблица1[[#This Row],[ВЕС]],INDEX($K$16:$R$24,,MATCH(Таблица1[[#This Row],[ПОЛ]]&Таблица1[[#This Row],[возраст]],$K$15:$R$15&$K$25:$R$25,0))),0)","v":0},"Платонов Глеб Евгеньевич","м",2006,37.9]
[{"$f":"LOOKUP(YEAR(TODAY())-Таблица1[[#This Row],[ГОД]],{0,11,15,18},$K$3:$K$6)","v":1},{"$f":"IFERROR(MATCH(Таблица1[[#This Row],[ВЕС]],INDEX($K$16:$R$24,,MATCH(Таблица1[[#This Row],[ПОЛ]]&Таблица1[[#This Row],[возраст]],$K$15:$R$15&$K$25:$R$25,0))),0)","v":3},"Погодаев Александр Георгиевич","м",2009,30,"Турнир МСК района"]
[{"$f":"LOOKUP(YEAR(TODAY())-Таблица1[[#This Row],[ГОД]],{0,11,15,18},$K$3:$K$6)","v":1},{"$f":"IFERROR(MATCH(Таблица1[[#This Row],[ВЕС]],INDEX($K$16:$R$24,,MATCH(Таблица1[[#This Row],[ПОЛ]]&Таблица1[[#This Row],[возраст]],$K$15:$R$15&$K$25:$R$25,0))),0)","v":4},"Порфиров Ярослав Максимович","м",2008,34.4,"Турнир МСК района"]
[{"$f":"LOOKUP(YEAR(TODAY())-Таблица1[[#This Row],[ГОД]],{0,11,15,18},$K$3:$K$6)","v":2},{"$f":"IFERROR(MATCH(Таблица1[[#This Row],[ВЕС]],INDEX($K$16:$R$24,,MATCH(Таблица1[[#This Row],[ПОЛ]]&Таблица1[[#This Row],[возраст]],$K$15:$R$15&$K$25:$R$25,0))),0)","v":3},"Рамазанов Магомед Русланович","м",2003,47.6,"Турнир МСК района"]
[{"$f":"LOOKUP(YEAR(TODAY())-Таблица1[[#This Row],[ГОД]],{0,11,15,18},$K$3:$K$6)","v":2},{"$f":"IFERROR(MATCH(Таблица1[[#This Row],[ВЕС]],INDEX($K$16:$R$24,,MATCH(Таблица1[[#This Row],[ПОЛ]]&Таблица1[[#This Row],[возраст]],$K$15:$R$15&$K$25:$R$25,0))),0)","v":1},"Рамазанов Шамиль Русланович","м",2006,40.9]
[{"$f":"LOOKUP(YEAR(TODAY())-Таблица1[[#This Row],[ГОД]],{0,11,15,18},$K$3:$K$6)","v":1},{"$f":"IFERROR(MATCH(Таблица1[[#This Row],[ВЕС]],INDEX($K$16:$R$24,,MATCH(Таблица1[[#This Row],[ПОЛ]]&Таблица1[[#This Row],[возраст]],$K$15:$R$15&$K$25:$R$25,0))),0)","v":4},"Руденко Савелий Андреевич","м",2008,35.5,"Турнир МСК района"]
[{"$f":"LOOKUP(YEAR(TODAY())-Таблица1[[#This Row],[ГОД]],{0,11,15,18},$K$3:$K$6)","v":4},{"$f":"IFERROR(MATCH(Таблица1[[#This Row],[ВЕС]],INDEX($K$16:$R$24,,MATCH(Таблица1[[#This Row],[ПОЛ]]&Таблица1[[#This Row],[возраст]],$K$15:$R$15&$K$25:$R$25,0))),0)","v":3},"Рябев Владислав Валерьевич","м",1990,74]
[{"$f":"LOOKUP(YEAR(TODAY())-Таблица1[[#This Row],[ГОД]],{0,11,15,18},$K$3:$K$6)","v":2},{"$f":"IFERROR(MATCH(Таблица1[[#This Row],[ВЕС]],INDEX($K$16:$R$24,,MATCH(Таблица1[[#This Row],[ПОЛ]]&Таблица1[[#This Row],[возраст]],$K$15:$R$15&$K$25:$R$25,0))),0)","v":0},"Салмин Николай Юрьевич","м",2006,36.200000000000003,"Приезд Арнольда"]
[{"$f":"LOOKUP(YEAR(TODAY())-Таблица1[[#This Row],[ГОД]],{0,11,15,18},$K$3:$K$6)","v":1},{"$f":"IFERROR(MATCH(Таблица1[[#This Row],[ВЕС]],INDEX($K$16:$R$24,,MATCH(Таблица1[[#This Row],[ПОЛ]]&Таблица1[[#This Row],[возраст]],$K$15:$R$15&$K$25:$R$25,0))),0)","v":6},"Свашенко Арсений Романович","м",2007,42.1,"Приезд Арнольда"]
[{"$f":"LOOKUP(YEAR(TODAY())-Таблица1[[#This Row],[ГОД]],{0,11,15,18},$K$3:$K$6)","v":2},{"$f":"IFERROR(MATCH(Таблица1[[#This Row],[ВЕС]],INDEX($K$16:$R$24,,MATCH(Таблица1[[#This Row],[ПОЛ]]&Таблица1[[#This Row],[возраст]],$K$15:$R$15&$K$25:$R$25,0))),0)","v":2},"Севостьянов Александр Андреевич","м",2003,45,"Приезд Арнольда"]
[{"$f":"LOOKUP(YEAR(TODAY())-Таблица1[[#This Row],[ГОД]],{0,11,15,18},$K$3:$K$6)","v":1},{"$f":"IFERROR(MATCH(Таблица1[[#This Row],[ВЕС]],INDEX($K$16:$R$24,,MATCH(Таблица1[[#This Row],[ПОЛ]]&Таблица1[[#This Row],[возраст]],$K$15:$R$15&$K$25:$R$25,0))),0)","v":0},"Сидоров Алексей Павлович","м",2012,18,"Приезд Арнольда"]
[{"$f":"LOOKUP(YEAR(TODAY())-Таблица1[[#This Row],[ГОД]],{0,11,15,18},$K$3:$K$6)","v":1},{"$f":"IFERROR(MATCH(Таблица1[[#This Row],[ВЕС]],INDEX($K$16:$R$24,,MATCH(Таблица1[[#This Row],[ПОЛ]]&Таблица1[[#This Row],[возраст]],$K$15:$R$15&$K$25:$R$25,0))),0)","v":2},"Сидоров Николай Павлович","м",2008,27.5,"Приезд Арнольда"]
[{"$f":"LOOKUP(YEAR(TODAY())-Таблица1[[#This Row],[ГОД]],{0,11,15,18},$K$3:$K$6)","v":1},{"$f":"IFERROR(MATCH(Таблица1[[#This Row],[ВЕС]],INDEX($K$16:$R$24,,MATCH(Таблица1[[#This Row],[ПОЛ]]&Таблица1[[#This Row],[возраст]],$K$15:$R$15&$K$25:$R$25,0))),0)","v":3},"Смирнов Александр Игоревич","м",2009,31]
[{"$f":"LOOKUP(YEAR(TODAY())-Таблица1[[#This Row],[ГОД]],{0,11,15,18},$K$3:$K$6)","v":1},{"$f":"IFERROR(MATCH(Таблица1[[#This Row],[ВЕС]],INDEX($K$16:$R$24,,MATCH(Таблица1[[#This Row],[ПОЛ]]&Таблица1[[#This Row],[возраст]],$K$15:$R$15&$K$25:$R$25,0))),0)","v":4},"Станкевич Тимофей Дмитриевич","м",2007,37.6,"Приезд Арнольда"]
[{"$f":"LOOKUP(YEAR(TODAY())-Таблица1[[#This Row],[ГОД]],{0,11,15,18},$K$3:$K$6)","v":2},{"$f":"IFERROR(MATCH(Таблица1[[#This Row],[ВЕС]],INDEX($K$16:$R$24,,MATCH(Таблица1[[#This Row],[ПОЛ]]&Таблица1[[#This Row],[возраст]],$K$15:$R$15&$K$25:$R$25,0))),0)","v":1},"Сунгатуллин Даниэль Наилевич","м",2004,39]
[{"$f":"LOOKUP(YEAR(TODAY())-Таблица1[[#This Row],[ГОД]],{0,11,15,18},$K$3:$K$6)","v":1},{"$f":"IFERROR(MATCH(Таблица1[[#This Row],[ВЕС]],INDEX($K$16:$R$24,,MATCH(Таблица1[[#This Row],[ПОЛ]]&Таблица1[[#This Row],[возраст]],$K$15:$R$15&$K$25:$R$25,0))),0)","v":3},"Тамбовский Константин Викторович","м",2007,30,"Приезд Арнольда"]
[{"$f":"LOOKUP(YEAR(TODAY())-Таблица1[[#This Row],[ГОД]],{0,11,15,18},$K$3:$K$6)","v":1},{"$f":"IFERROR(MATCH(Таблица1[[#This Row],[ВЕС]],INDEX($K$16:$R$24,,MATCH(Таблица1[[#This Row],[ПОЛ]]&Таблица1[[#This Row],[возраст]],$K$15:$R$15&$K$25:$R$25,0))),0)","v":2},"Титов Сергей Викторович","м",2009,29.9,"Приезд Арнольда"]
[{"$f":"LOOKUP(YEAR(TODAY())-Таблица1[[#This Row],[ГОД]],{0,11,15,18},$K$3:$K$6)","v":1},{"$f":"IFERROR(MATCH(Таблица1[[#This Row],[ВЕС]],INDEX($K$16:$R$24,,MATCH(Таблица1[[#This Row],[ПОЛ]]&Таблица1[[#This Row],[возраст]],$K$15:$R$15&$K$25:$R$25,0))),0)","v":1},"Ткаченко Марк Алексеевич","м",2008,22,"Турнир МСК района"]
[{"$f":"LOOKUP(YEAR(TODAY())-Таблица1[[#This Row],[ГОД]],{0,11,15,18},$K$3:$K$6)","v":2},{"$f":"IFERROR(MATCH(Таблица1[[#This Row],[ВЕС]],INDEX($K$16:$R$24,,MATCH(Таблица1[[#This Row],[ПОЛ]]&Таблица1[[#This Row],[возраст]],$K$15:$R$15&$K$25:$R$25,0))),0)","v":3},"Ткачук Федор Дмитриевич","м",2005,49.1]
[{"$f":"LOOKUP(YEAR(TODAY())-Таблица1[[#This Row],[ГОД]],{0,11,15,18},$K$3:$K$6)","v":1},{"$f":"IFERROR(MATCH(Таблица1[[#This Row],[ВЕС]],INDEX($K$16:$R$24,,MATCH(Таблица1[[#This Row],[ПОЛ]]&Таблица1[[#This Row],[возраст]],$K$15:$R$15&$K$25:$R$25,0))),0)","v":3},"Токарь Никита Алексеевич","м",2008,30,"Приезд Арнольда"]
[{"$f":"LOOKUP(YEAR(TODAY())-Таблица1[[#This Row],[ГОД]],{0,11,15,18},$K$3:$K$6)","v":1},{"$f":"IFERROR(MATCH(Таблица1[[#This Row],[ВЕС]],INDEX($K$16:$R$24,,MATCH(Таблица1[[#This Row],[ПОЛ]]&Таблица1[[#This Row],[возраст]],$K$15:$R$15&$K$25:$R$25,0))),0)","v":4},"Фарзалиев Эльнур Мубариз оглы","м",2007,35,"Турнир МСК района"]
[{"$f":"LOOKUP(YEAR(TODAY())-Таблица1[[#This Row],[ГОД]],{0,11,15,18},$K$3:$K$6)","v":2},{"$f":"IFERROR(MATCH(Таблица1[[#This Row],[ВЕС]],INDEX($K$16:$R$24,,MATCH(Таблица1[[#This Row],[ПОЛ]]&Таблица1[[#This Row],[возраст]],$K$15:$R$15&$K$25:$R$25,0))),0)","v":1},"Федотов Даниил Дмитриевич","м",2004,39,"Приезд Арнольда"]
[{"$f":"LOOKUP(YEAR(TODAY())-Таблица1[[#This Row],[ГОД]],{0,11,15,18},$K$3:$K$6)","v":1},{"$f":"IFERROR(MATCH(Таблица1[[#This Row],[ВЕС]],INDEX($K$16:$R$24,,MATCH(Таблица1[[#This Row],[ПОЛ]]&Таблица1[[#This Row],[возраст]],$K$15:$R$15&$K$25:$R$25,0))),0)","v":2},"Филин Григорий Денисович","м",2008,27]
[{"$f":"LOOKUP(YEAR(TODAY())-Таблица1[[#This Row],[ГОД]],{0,11,15,18},$K$3:$K$6)","v":2},{"$f":"IFERROR(MATCH(Таблица1[[#This Row],[ВЕС]],INDEX($K$16:$R$24,,MATCH(Таблица1[[#This Row],[ПОЛ]]&Таблица1[[#This Row],[возраст]],$K$15:$R$15&$K$25:$R$25,0))),0)","v":4},"Филиппов Михаил Борисович","м",2004,53,"Турнир МСК района"]
[{"$f":"LOOKUP(YEAR(TODAY())-Таблица1[[#This Row],[ГОД]],{0,11,15,18},$K$3:$K$6)","v":2},{"$f":"IFERROR(MATCH(Таблица1[[#This Row],[ВЕС]],INDEX($K$16:$R$24,,MATCH(Таблица1[[#This Row],[ПОЛ]]&Таблица1[[#This Row],[возраст]],$K$15:$R$15&$K$25:$R$25,0))),0)","v":0},"Хван Роман Денисович","м",2006,37,"Приезд Арнольда"]
[{"$f":"LOOKUP(YEAR(TODAY())-Таблица1[[#This Row],[ГОД]],{0,11,15,18},$K$3:$K$6)","v":1},{"$f":"IFERROR(MATCH(Таблица1[[#This Row],[ВЕС]],INDEX($K$16:$R$24,,MATCH(Таблица1[[#This Row],[ПОЛ]]&Таблица1[[#This Row],[возраст]],$K$15:$R$15&$K$25:$R$25,0))),0)","v":2},"Царьков Денис Максимович","м",2008,27.4,"Приезд Арнольда"]
[{"$f":"LOOKUP(YEAR(TODAY())-Таблица1[[#This Row],[ГОД]],{0,11,15,18},$K$3:$K$6)","v":2},{"$f":"IFERROR(MATCH(Таблица1[[#This Row],[ВЕС]],INDEX($K$16:$R$24,,MATCH(Таблица1[[#This Row],[ПОЛ]]&Таблица1[[#This Row],[возраст]],$K$15:$R$15&$K$25:$R$25,0))),0)","v":2},"Цветков Семен Алексеевич","м",2005,45,"Приезд Арнольда"]
[{"$f":"LOOKUP(YEAR(TODAY())-Таблица1[[#This Row],[ГОД]],{0,11,15,18},$K$3:$K$6)","v":4},{"$f":"IFERROR(MATCH(Таблица1[[#This Row],[ВЕС]],INDEX($K$16:$R$24,,MATCH(Таблица1[[#This Row],[ПОЛ]]&Таблица1[[#This Row],[возраст]],$K$15:$R$15&$K$25:$R$25,0))),0)","v":0},"Шабанов Игорь Эдуардович","м",1996,59]
[{"$f":"LOOKUP(YEAR(TODAY())-Таблица1[[#This Row],[ГОД]],{0,11,15,18},$K$3:$K$6)","v":1},{"$f":"IFERROR(MATCH(Таблица1[[#This Row],[ВЕС]],INDEX($K$16:$R$24,,MATCH(Таблица1[[#This Row],[ПОЛ]]&Таблица1[[#This Row],[возраст]],$K$15:$R$15&$K$25:$R$25,0))),0)","v":4},"Шапаев Никита Алексеевич","м",2007,36]
[{"$f":"LOOKUP(YEAR(TODAY())-Таблица1[[#This Row],[ГОД]],{0,11,15,18},$K$3:$K$6)","v":3},{"$f":"IFERROR(MATCH(Таблица1[[#This Row],[ВЕС]],INDEX($K$16:$R$24,,MATCH(Таблица1[[#This Row],[ПОЛ]]&Таблица1[[#This Row],[возраст]],$K$15:$R$15&$K$25:$R$25,0))),0)","v":4},"Шиколаев Сергей Олегович","м",2002,62,"Турнир МСК района"]
[{"$f":"LOOKUP(YEAR(TODAY())-Таблица1[[#This Row],[ГОД]],{0,11,15,18},$K$3:$K$6)","v":2},{"$f":"IFERROR(MATCH(Таблица1[[#This Row],[ВЕС]],INDEX($K$16:$R$24,,MATCH(Таблица1[[#This Row],[ПОЛ]]&Таблица1[[#This Row],[возраст]],$K$15:$R$15&$K$25:$R$25,0))),0)","v":4},"Шпет Артур Георгович","м",2003,50,"Приезд Арнольда"]
[{"$f":"LOOKUP(YEAR(TODAY())-Таблица1[[#This Row],[ГОД]],{0,11,15,18},$K$3:$K$6)","v":2},{"$f":"IFERROR(MATCH(Таблица1[[#This Row],[ВЕС]],INDEX($K$16:$R$24,,MATCH(Таблица1[[#This Row],[ПОЛ]]&Таблица1[[#This Row],[возраст]],$K$15:$R$15&$K$25:$R$25,0))),0)","v":0},"Эйлон Григорий Семенович","м",2006,37.700000000000003,"Приезд Арнольда"]
[{"$f":"LOOKUP(YEAR(TODAY())-Таблица1[[#This Row],[ГОД]],{0,11,15,18},$K$3:$K$6)","v":2},{"$f":"IFERROR(MATCH(Таблица1[[#This Row],[ВЕС]],INDEX($K$16:$R$24,,MATCH(Таблица1[[#This Row],[ПОЛ]]&Таблица1[[#This Row],[возраст]],$K$15:$R$15&$K$25:$R$25,0))),0)","v":0},"Эль Кхашани Адам","м",2005,36.700000000000003]
[{"$f":"LOOKUP(YEAR(TODAY())-Таблица1[[#This Row],[ГОД]],{0,11,15,18},$K$3:$K$6)","v":2},{"$f":"IFERROR(MATCH(Таблица1[[#This Row],[ВЕС]],INDEX($K$16:$R$24,,MATCH(Таблица1[[#This Row],[ПОЛ]]&Таблица1[[#This Row],[возраст]],$K$15:$R$15&$K$25:$R$25,0))),0)","v":1},"Ягунов Даниил Сергеевич","м",2005,38.200000000000003,"Турнир МСК района"]

{"sheet":"Свод по событию","index":1,"n_rows":73,"n_cols":7,"rows_kept":73,"cut":false,"hidden":false,"merged":[]}
[]
[]
["СОБЫТИЕ","Приезд Арнольда"]
[]
["ВОЗРГруппа2","ВесКатегория2","ГОД","ВЕС","ФИО","ПОЛ","кол-во"]
[1,0,2012,18,"Сидоров Алексей Павлович","м",1]
[null,"0 Количество",null,null,null,null,1]
[null,1,2009,24.4,"Аляутдинов Марат Борисович","м",1]
[null,null,null,24.8,"Готовцев Владимир Владимирович","м",1]
[null,null,null,25.4,"Колчин Лев Георгиевич","м",1]
[null,"1 Количество",null,null,null,null,3]
[null,2,2008,27.4,"Царьков Денис Максимович","м",1]
[null,null,null,27.5,"Сидоров Николай Павлович","м",1]
[null,null,null,29,"Милаев Дмитрий Евгеньевич","м",1]
[null,null,2009,26.8,"Комиссаров Денис Антонович","м",1]
[null,null,null,28,"Мамедов Рафаэль Юсифович","м",1]
[null,null,null,null,"Мацавей Артем Денисович","м",1]
[null,null,null,29.9,"Титов Сергей Викторович","м",1]
[null,"2 Количество",null,null,null,null,7]
[null,3,2007,30,"Тамбовский Константин Викторович","м",1]
[null,null,null,32,"Гусев Глеб Александрович","м",1]
[null,null,2008,30,"Токарь Никита Алексеевич","м",1]
[null,null,null,31.9,"Павлов Максим Сергеевич","м",1]
[null,null,2009,30,"Михайлов Андрей Дмитриевич","м",1]
[null,"3 Количество",null,null,null,null,5]
[null,4,2007,35,"Кузнецов Александр Владимирович","м",1]
[null,null,null,36,"Левшинов Ведагор Андреевич","м",1]
[null,null,null,37.6,"Станкевич Тимофей Дмитриевич","м",1]
[null,"4 Количество",null,null,null,null,3]
[null,5,2007,38,"Барсуков Артем Вадимович","м",1]
[null,null,null,38.200000000000003,"Балихина Арина Богдановна","ж",1]
[null,null,null,38.4,"Афанасенко Севастьян Евгеньевич","м",1]
[null,null,2008,38.200000000000003,"Медведев Никита Алексеевич","м",1]
[null,"5 Количество",null,null,null,null,4]
[null,6,2007,42.1,"Свашенко Арсений Романович","м",1]
[null,"6 Количество",null,null,null,null,1]
["1 Итог",null,null,null,null,null,24]
[2,0,2004,36,"Крюков Егор Алексеевич","м",1]
[null,null,null,36.700000000000003,"Аверин Дмитрий Андреевич","м",1]
[null,null,null,37.200000000000003,"Кулагин Вячеслав Анатольевич","м",1]
[null,null,2005,35,"Денисов Дмитрий Данилович","м",1]
[null,null,2006,32.200000000000003,"Богомаз Федор Денисович","м",1]
[null,null,null,35,"выафа","м",1]
[null,null,null,36,"Левада Максим Алексеевич","м",1]
[null,null,null,36.200000000000003,"Салмин Николай Юрьевич","м",1]
[null,null,null,37,"Хван Роман Денисович","м",1]
[null,null,null,37.700000000000003,"Эйлон Григорий Семенович","м",1]
[null,null,null,37.799999999999997,"Немышев Ильдар Наилевич","м",1]
[null,null,null,"(пусто)","Литузов Ярослав Витальевич","м",1]
[null,"0 Количество",null,null,null,null,12]
[null,1,2004,39,"Федотов Даниил Дмитриевич","м",1]
[null,null,2005,38,"Денисов Даниил Дмитриевич","м",1]
[null,null,null,40,"фывапавы","м",1]
[null,null,2006,40,"Горбунов Вячеслав Валерьевич","м",1]
[null,null,null,null,"ывпавывыфв","м",1]
[null,null,null,40.200000000000003,"Болячевский Александр Михайлович","м",1]
[null,"1 Количество",null,null,null,null,6]
[null,2,2003,45,"Севостьянов Александр Андреевич","м",1]
[null,null,2005,43,"Колесников Борис Дмитриевич","м",1]
[null,null,null,45,"Цветков Семен Алексеевич","м",1]
[null,"2 Количество",null,null,null,null,3]
[null,4,2003,50,"Шпет Артур Георгович","м",1]
[null,"4 Количество",null,null,null,null,1]
["2 Итог",null,null,null,null,null,22]
[3,0,2000,45,"Денисов Денис Денисыч","м",1]
[null,"0 Количество",null,null,null,null,1]
["3 Итог",null,null,null,null,null,1]
[4,0,1999,48,"Данилов Данил Данилыч","м",1]
[null,"0 Количество",null,null,null,null,1]
[null,2,1978,72.2,"Пешков Андрей Викторович","м",1]
[null,"2 Количество",null,null,null,null,1]
["4 Итог",null,null,null,null,null,2]
["Общий итог",null,null,null,null,null,49]

{"sheet":"Лист1","index":2,"n_rows":19,"n_cols":11,"rows_kept":19,"cut":false,"hidden":false,"merged":[]}
[1,null,null,null,null,null,null,null,null,null,3]
[]
[2,null,null,null,null,null,null,null,null,null,4]
[]
[]
[5,null,null,null,null,null,null,null,null,null,7]
[]
[6,null,null,null,null,null,null,null,null,null,8]
[]
[]
[]
[9,null,null,null,null,null,null,null,null,null,11]
[]
[10,null,null,null,null,null,null,null,null,null,12]
[]
[]
[13,null,null,null,null,null,null,null,null,null,15]
[]
[14,null,null,null,null,null,null,null,null,null,16]